[Event "*** SCC Grand Prix: Titled Tuesday Blitz"]
[Site "Chess.com"]
[Date "2020.10.06"]
[Round "6"]
[White "ViktoriyaTarasova"]
[Black "Evachess2006"]
[Result "1-0"]
[WhiteElo "2269"]
[BlackElo "1627"]
[TimeControl "180+1"]
[EndTime "11:06:32 PDT"]
[Termination "ViktoriyaTarasova won by checkmate"]

1. d4 {[%clk 0:02:55.7]} 1... d5 {[%clk 0:02:49.7]} 2. c4 {[%clk 0:02:54.9]}
2... dxc4 {[%clk 0:02:40.5]} 3. e4 {[%clk 0:02:53.7]} 3... e6 {[%clk 0:02:34.7]}
4. Bxc4 {[%clk 0:02:52]} 4... Bb4+ {[%clk 0:02:23.3]} 5. Nc3 {[%clk 0:02:50.8]}
5... Nf6 {[%clk 0:02:11.2]} 6. e5 {[%clk 0:02:29.8]} 6... Nd5 {[%clk 0:01:45.2]}
7. Ne2 {[%clk 0:02:15.8]} 7... O-O {[%clk 0:01:36.2]} 8. O-O {[%clk 0:02:14.7]}
8... Nxc3 {[%clk 0:01:22.9]} 9. bxc3 {[%clk 0:02:13.6]} 9... Be7 {[%clk
0:01:14.5]} 10. Qc2 {[%clk 0:02:08.6]} 10... b6 {[%clk 0:00:57.2]} 11. Bd3
{[%clk 0:02:07.1]} 11... h6 {[%clk 0:00:38.9]} 12. Be4 {[%clk 0:02:06]} 12... c6
{[%clk 0:00:35.8]} 13. f4 {[%clk 0:02:01.8]} 13... Bb7 {[%clk 0:00:34]} 14. f5
{[%clk 0:02:01.6]} 14... exf5 {[%clk 0:00:28.6]} 15. Rxf5 {[%clk 0:02:00.6]}
15... Nd7 {[%clk 0:00:26.7]} 16. Be3 {[%clk 0:01:54.6]} 16... Qc7 {[%clk
0:00:15.8]} 17. Raf1 {[%clk 0:01:53.2]} 17... c5 {[%clk 0:00:11.4]} 18. Bxb7
{[%clk 0:01:31.7]} 18... Qxb7 {[%clk 0:00:12.3]} 19. Ng3 {[%clk 0:01:30.3]}
19... cxd4 {[%clk 0:00:11.3]} 20. cxd4 {[%clk 0:01:29.9]} 20... Rac8 {[%clk
0:00:12]} 21. Qb3 {[%clk 0:01:29.4]} 21... a5 {[%clk 0:00:10.1]} 22. Rxf7 {[%clk
0:01:26.7]} 22... a4 {[%clk 0:00:10.8]} 23. Rxf8+ {[%clk 0:01:26]} 23... Kh7
{[%clk 0:00:07.5]} 24. Qd3+ {[%clk 0:01:24.7]} 24... g6 {[%clk 0:00:05.2]} 25.
R1f7# {[%clk 0:01:24.6]} 1-0

[Event "*** SCC Grand Prix: Titled Tuesday Blitz"]
[Site "Chess.com"]
[Date "2020.10.06"]
[Round "6"]
[White "chessmachine14"]
[Black "akanga001"]
[Result "1-0"]
[WhiteElo "2278"]
[BlackElo "1872"]
[TimeControl "180+1"]
[EndTime "11:06:35 PDT"]
[Termination "chessmachine14 won by checkmate"]

1. e4 {[%clk 0:03:00.9]} 1... e5 {[%clk 0:02:59.8]} 2. Nf3 {[%clk 0:03:00.9]}
2... Nc6 {[%clk 0:02:59.6]} 3. Bb5 {[%clk 0:03:00.9]} 3... a6 {[%clk 0:02:58.9]}
4. Ba4 {[%clk 0:03:00.3]} 4... Nf6 {[%clk 0:02:57.3]} 5. O-O {[%clk 0:02:56.1]}
5... Be7 {[%clk 0:02:55.5]} 6. d3 {[%clk 0:02:54.6]} 6... b5 {[%clk 0:02:54.9]}
7. Bb3 {[%clk 0:02:54.8]} 7... d6 {[%clk 0:02:54.3]} 8. a3 {[%clk 0:02:53.9]}
8... O-O {[%clk 0:02:53.7]} 9. Nc3 {[%clk 0:02:54.1]} 9... Nb8 {[%clk
0:02:53.1]} 10. Bg5 {[%clk 0:02:41.6]} 10... Nbd7 {[%clk 0:02:46.6]} 11. a4
{[%clk 0:02:27.3]} 11... b4 {[%clk 0:02:43.1]} 12. Nd5 {[%clk 0:02:18.9]} 12...
Nxd5 {[%clk 0:02:41.4]} 13. Bxd5 {[%clk 0:02:19.8]} 13... Rb8 {[%clk 0:02:35.8]}
14. Bd2 {[%clk 0:02:19.8]} 14... a5 {[%clk 0:02:30.9]} 15. d4 {[%clk 0:02:16.2]}
15... exd4 {[%clk 0:02:28.5]} 16. Nxd4 {[%clk 0:02:15.3]} 16... Nc5 {[%clk
0:02:27.4]} 17. Nc6 {[%clk 0:02:14.4]} 17... Qe8 {[%clk 0:02:06.2]} 18. Nxb8
{[%clk 0:02:14.4]} 18... Be6 {[%clk 0:01:53.8]} 19. Nc6 {[%clk 0:02:12.3]} 19...
Bf6 {[%clk 0:01:46.1]} 20. c3 {[%clk 0:02:08.2]} 20... bxc3 {[%clk 0:01:30.4]}
21. Bxc3 {[%clk 0:02:09.1]} 21... Bxc3 {[%clk 0:01:28.7]} 22. bxc3 {[%clk
0:02:10]} 22... Bd7 {[%clk 0:01:26.7]} 23. Nxa5 {[%clk 0:02:07.3]} 23... Qe5
{[%clk 0:01:26]} 24. Qd4 {[%clk 0:02:05.5]} 24... Qg5 {[%clk 0:01:25.4]} 25. f4
{[%clk 0:02:01.3]} 25... Qg6 {[%clk 0:01:23.9]} 26. f5 {[%clk 0:02:00.7]} 26...
Qg5 {[%clk 0:01:22.4]} 27. Rf3 {[%clk 0:02:00]} 27... g6 {[%clk 0:01:08.2]} 28.
Rg3 {[%clk 0:01:57.4]} 28... Qh5 {[%clk 0:01:07.2]} 29. Rf1 {[%clk 0:01:55.8]}
29... c6 {[%clk 0:00:54.1]} 30. Nxc6 {[%clk 0:01:51.3]} 30... Bxc6 {[%clk
0:00:53.2]} 31. Bxc6 {[%clk 0:01:51.7]} 31... Nb3 {[%clk 0:00:51.4]} 32. Qf6
{[%clk 0:01:49.3]} 32... Nd2 {[%clk 0:00:48.6]} 33. fxg6 {[%clk 0:01:38.5]}
33... hxg6 {[%clk 0:00:45.1]} 34. Bd5 {[%clk 0:01:36.9]} 34... Nxf1 {[%clk
0:00:42.1]} 35. Rxg6+ {[%clk 0:01:36.4]} 35... Qxg6 {[%clk 0:00:29.1]} 36. Qxg6+
{[%clk 0:01:36.5]} 36... Kh8 {[%clk 0:00:30]} 37. Bxf7 {[%clk 0:01:35.6]} 37...
Ne3 {[%clk 0:00:27.4]} 38. Qh6# {[%clk 0:01:34.9]} 1-0

[Event "*** SCC Grand Prix: Titled Tuesday Blitz"]
[Site "Chess.com"]
[Date "2020.10.06"]
[Round "6"]
[White "MasterMK73"]
[Black "ethylalcohol"]
[Result "1-0"]
[WhiteElo "2210"]
[BlackElo "2135"]
[TimeControl "180+1"]
[EndTime "11:06:44 PDT"]
[Termination "MasterMK73 won on time"]

1. e4 {[%clk 0:03:00.9]} 1... e6 {[%clk 0:02:59.9]} 2. d4 {[%clk 0:02:59.6]}
2... d5 {[%clk 0:03:00.2]} 3. Nd2 {[%clk 0:02:58.6]} 3... c5 {[%clk 0:02:59.3]}
4. exd5 {[%clk 0:02:55.5]} 4... Qxd5 {[%clk 0:02:58.7]} 5. Ngf3 {[%clk
0:02:54.9]} 5... cxd4 {[%clk 0:02:58.5]} 6. Bc4 {[%clk 0:02:54.9]} 6... Qd6
{[%clk 0:02:58.4]} 7. O-O {[%clk 0:02:53.8]} 7... Nf6 {[%clk 0:02:57.4]} 8. Qe2
{[%clk 0:02:53.7]} 8... Nc6 {[%clk 0:02:55.6]} 9. Nb3 {[%clk 0:02:53.8]} 9...
Be7 {[%clk 0:02:47.5]} 10. Rd1 {[%clk 0:02:53.6]} 10... e5 {[%clk 0:02:11.4]}
11. c3 {[%clk 0:02:52.6]} 11... Bg4 {[%clk 0:01:57.3]} 12. cxd4 {[%clk
0:02:51.6]} 12... e4 {[%clk 0:01:42.7]} 13. Bxf7+ {[%clk 0:02:36.4]} 13... Kxf7
{[%clk 0:01:34.6]} 14. Ng5+ {[%clk 0:02:36.1]} 14... Kf8 {[%clk 0:01:24.7]} 15.
f3 {[%clk 0:02:35.7]} 15... exf3 {[%clk 0:01:16.5]} 16. gxf3 {[%clk 0:02:35.4]}
16... Bd7 {[%clk 0:01:12]} 17. d5 {[%clk 0:02:08.7]} 17... Nxd5 {[%clk
0:00:50.5]} 18. Qc4 {[%clk 0:02:08.4]} 18... Ncb4 {[%clk 0:00:31.4]} 19. a3
{[%clk 0:01:53.9]} 19... Rc8 {[%clk 0:00:24.3]} 20. Qe4 {[%clk 0:01:45.2]} 20...
Rc2 {[%clk 0:00:14.4]} 21. Bd2 {[%clk 0:01:32.7]} 21... Qb6+ {[%clk 0:00:09.5]}
22. Kh1 {[%clk 0:01:30.1]} 22... Rxd2 {[%clk 0:00:02.3]} 23. Rxd2 {[%clk
0:01:25.1]} 23... Bxg5 {[%clk 0:00:02.1]} 24. Rg2 {[%clk 0:01:18.8]} 1-0

[Event "*** SCC Grand Prix: Titled Tuesday Blitz"]
[Site "Chess.com"]
[Date "2020.10.06"]
[Round "6"]
[White "Infernal_XaM"]
[Black "seorobert1971"]
[Result "1-0"]
[WhiteElo "2874"]
[BlackElo "2704"]
[TimeControl "180+1"]
[EndTime "11:06:45 PDT"]
[Termination "Infernal_XaM won by resignation"]

1. d4 {[%clk 0:03:00.7]} 1... Nf6 {[%clk 0:02:59.6]} 2. c4 {[%clk 0:03:01.6]}
2... e6 {[%clk 0:02:59.4]} 3. Nf3 {[%clk 0:03:01.9]} 3... d5 {[%clk 0:02:59.4]}
4. Nc3 {[%clk 0:02:59.5]} 4... dxc4 {[%clk 0:02:59.4]} 5. e4 {[%clk 0:02:57]}
5... b5 {[%clk 0:02:59.3]} 6. e5 {[%clk 0:02:56.4]} 6... Nd5 {[%clk 0:02:59.4]}
7. Nxb5 {[%clk 0:02:56.7]} 7... Nb6 {[%clk 0:02:59.7]} 8. Nc3 {[%clk 0:02:56.2]}
8... Nc6 {[%clk 0:02:54.3]} 9. Be3 {[%clk 0:02:56.4]} 9... Be7 {[%clk
0:02:51.5]} 10. Be2 {[%clk 0:02:56.2]} 10... Bb7 {[%clk 0:02:46.2]} 11. O-O
{[%clk 0:02:56]} 11... O-O {[%clk 0:02:45.3]} 12. Rc1 {[%clk 0:02:55.2]} 12...
Rb8 {[%clk 0:02:29.9]} 13. Qc2 {[%clk 0:02:41.9]} 13... Nb4 {[%clk 0:02:28.5]}
14. Qb1 {[%clk 0:02:40.1]} 14... Qd7 {[%clk 0:02:22.4]} 15. Rfd1 {[%clk
0:02:37.6]} 15... N4d5 {[%clk 0:02:17.8]} 16. Nxd5 {[%clk 0:02:30.3]} 16... Bxd5
{[%clk 0:02:11.6]} 17. Nd2 {[%clk 0:02:30.1]} 17... Na4 {[%clk 0:02:04]} 18.
Nxc4 {[%clk 0:02:07.3]} 18... Bxc4 {[%clk 0:02:00.3]} 19. Rxc4 {[%clk
0:02:06.9]} 19... Nxb2 {[%clk 0:01:57.8]} 20. Qc2 {[%clk 0:01:52.3]} 20... Nxc4
{[%clk 0:01:51.4]} 21. Bxc4 {[%clk 0:01:51]} 21... Rfc8 {[%clk 0:01:46.6]} 22.
d5 {[%clk 0:01:47.8]} 22... exd5 {[%clk 0:01:42.7]} 23. Bxd5 {[%clk 0:01:48.2]}
23... Qe8 {[%clk 0:01:34.9]} 24. e6 {[%clk 0:01:45.6]} 24... f6 {[%clk
0:01:08.7]} 25. Bc6 {[%clk 0:01:44.4]} 25... Qf8 {[%clk 0:01:08.7]} 26. Bxa7
{[%clk 0:01:27.2]} 26... Rb4 {[%clk 0:01:06.2]} 27. Rd7 {[%clk 0:01:26.7]} 27...
Rd8 {[%clk 0:01:01.6]} 28. h3 {[%clk 0:01:25.5]} 28... Rxd7 {[%clk 0:00:49.8]}
29. exd7 {[%clk 0:01:25.6]} 29... Qf7 {[%clk 0:00:47.1]} 30. Qd2 {[%clk
0:01:22.1]} 30... Rb1+ {[%clk 0:00:46.8]} 31. Kh2 {[%clk 0:01:21.5]} 31... Qf8
{[%clk 0:00:46.8]} 32. Be3 {[%clk 0:01:17.4]} 32... g6 {[%clk 0:00:35.6]} 33. a4
{[%clk 0:01:16.4]} 33... Bd6+ {[%clk 0:00:33.9]} 34. g3 {[%clk 0:01:16.3]} 34...
Be7 {[%clk 0:00:29.8]} 35. Qa2+ {[%clk 0:01:15.8]} 1-0

[Event "*** SCC Grand Prix: Titled Tuesday Blitz"]
[Site "Chess.com"]
[Date "2020.10.06"]
[Round "6"]
[White "jacky72"]
[Black "kirillgenius"]
[Result "1/2-1/2"]
[WhiteElo "2573"]
[BlackElo "2351"]
[TimeControl "180+1"]
[EndTime "11:06:46 PDT"]
[Termination "Game drawn by repetition"]

1. Nf3 {[%clk 0:03:00.9]} 1... d5 {[%clk 0:02:58.2]} 2. c4 {[%clk 0:03:00]} 2...
e6 {[%clk 0:02:57.2]} 3. cxd5 {[%clk 0:02:59.6]} 3... exd5 {[%clk 0:02:56.8]} 4.
g3 {[%clk 0:03:00.5]} 4... c6 {[%clk 0:02:56.6]} 5. Bg2 {[%clk 0:03:01.4]} 5...
Nf6 {[%clk 0:02:55.7]} 6. O-O {[%clk 0:03:02.3]} 6... Be7 {[%clk 0:02:55.7]} 7.
b3 {[%clk 0:03:03.2]} 7... O-O {[%clk 0:02:55.6]} 8. Bb2 {[%clk 0:03:04.1]} 8...
Re8 {[%clk 0:02:55.6]} 9. d3 {[%clk 0:03:05]} 9... Bg4 {[%clk 0:02:53.7]} 10. h3
{[%clk 0:03:04.7]} 10... Bh5 {[%clk 0:02:53.2]} 11. g4 {[%clk 0:03:05.2]} 11...
Bg6 {[%clk 0:02:52.9]} 12. Ne5 {[%clk 0:03:05.7]} 12... Nbd7 {[%clk 0:02:52]}
13. Nxg6 {[%clk 0:03:03.5]} 13... hxg6 {[%clk 0:02:52.9]} 14. Nd2 {[%clk
0:03:02.8]} 14... Qa5 {[%clk 0:02:50.2]} 15. Nf3 {[%clk 0:03:02.6]} 15... Ba3
{[%clk 0:02:47.9]} 16. Bxa3 {[%clk 0:02:52.9]} 16... Qxa3 {[%clk 0:02:48.8]} 17.
Re1 {[%clk 0:02:53.3]} 17... Rad8 {[%clk 0:02:40.5]} 18. Qc2 {[%clk 0:02:53.1]}
18... Ne5 {[%clk 0:02:17.6]} 19. Nxe5 {[%clk 0:02:41.3]} 19... Rxe5 {[%clk
0:02:18.5]} 20. e4 {[%clk 0:02:42.1]} 20... dxe4 {[%clk 0:02:00.6]} 21. dxe4
{[%clk 0:02:43]} 21... Rc5 {[%clk 0:01:57.1]} 22. Qe2 {[%clk 0:02:39.4]} 22...
Qb4 {[%clk 0:01:38]} 23. Rad1 {[%clk 0:02:36.3]} 23... Rxd1 {[%clk 0:01:25.2]}
24. Rxd1 {[%clk 0:02:37.2]} 24... Qc3 {[%clk 0:01:23.1]} 25. f4 {[%clk
0:02:32.2]} 25... g5 {[%clk 0:00:58.2]} 26. e5 {[%clk 0:02:29.7]} 26... Nd5
{[%clk 0:00:54.9]} 27. Bxd5 {[%clk 0:02:29.5]} 27... Rxd5 {[%clk 0:00:54.3]} 28.
Rxd5 {[%clk 0:02:29.9]} 28... cxd5 {[%clk 0:00:55.2]} 29. fxg5 {[%clk
0:02:30.5]} 29... Qc1+ {[%clk 0:00:51.8]} 30. Kg2 {[%clk 0:02:26.9]} 30... Qxg5
{[%clk 0:00:51.5]} 31. e6 {[%clk 0:02:27.3]} 31... fxe6 {[%clk 0:00:41.4]} 32.
Qxe6+ {[%clk 0:02:26.7]} 32... Kh7 {[%clk 0:00:41.8]} 33. Kf3 {[%clk 0:02:21.6]}
33... Qd2 {[%clk 0:00:38]} 34. Qf5+ {[%clk 0:02:17]} 34... Kg8 {[%clk 0:00:37]}
35. Qc8+ {[%clk 0:02:17.5]} 35... Kh7 {[%clk 0:00:36.2]} 36. Qxb7 {[%clk
0:02:18.1]} 36... Qd3+ {[%clk 0:00:30.4]} 37. Kf4 {[%clk 0:02:18]} 37... Qd4+
{[%clk 0:00:26.6]} 38. Kf5 {[%clk 0:02:14.8]} 38... Qe4+ {[%clk 0:00:20.7]} 39.
Kg5 {[%clk 0:02:14.3]} 39... Qe5+ {[%clk 0:00:16.5]} 40. Kh4 {[%clk 0:02:14]}
40... Qe1+ {[%clk 0:00:16.6]} 41. Kh5 {[%clk 0:02:06.3]} 41... Qe5+ {[%clk
0:00:15.9]} 42. g5 {[%clk 0:02:04]} 42... Qe2+ {[%clk 0:00:15.8]} 43. Kh4 {[%clk
0:02:04.3]} 43... Qe4+ {[%clk 0:00:14.7]} 44. Kg3 {[%clk 0:02:03.5]} 44... Qe3+
{[%clk 0:00:15]} 45. Kg4 {[%clk 0:02:03.8]} 45... Qe4+ {[%clk 0:00:15.1]} 46.
Kg3 {[%clk 0:02:04.2]} 46... Qe3+ {[%clk 0:00:15.4]} 47. Kg2 {[%clk 0:02:04.5]}
47... Qe2+ {[%clk 0:00:12.6]} 48. Kg1 {[%clk 0:02:04.5]} 48... Qe1+ {[%clk
0:00:12.1]} 49. Kg2 {[%clk 0:02:04.5]} 49... Qe2+ {[%clk 0:00:12.3]} 50. Kg3
{[%clk 0:02:04.9]} 50... Qe3+ {[%clk 0:00:12.1]} 1/2-1/2

[Event "*** SCC Grand Prix: Titled Tuesday Blitz"]
[Site "Chess.com"]
[Date "2020.10.06"]
[Round "6"]
[White "Morshynska"]
[Black "GianmarcoVaR"]
[Result "0-1"]
[WhiteElo "2221"]
[BlackElo "2475"]
[TimeControl "180+1"]
[EndTime "11:06:46 PDT"]
[Termination "GianmarcoVaR won by resignation"]

1. Nf3 {[%clk 0:03:00.9]} 1... Nf6 {[%clk 0:02:54.8]} 2. g3 {[%clk 0:03:01]}
2... b6 {[%clk 0:02:51.8]} 3. Bg2 {[%clk 0:03:01]} 3... Bb7 {[%clk 0:02:51.9]}
4. O-O {[%clk 0:03:01]} 4... c5 {[%clk 0:02:50.7]} 5. c4 {[%clk 0:02:58.5]} 5...
g6 {[%clk 0:02:50.7]} 6. b3 {[%clk 0:02:58]} 6... Bg7 {[%clk 0:02:50.8]} 7. Bb2
{[%clk 0:02:58.5]} 7... O-O {[%clk 0:02:51.4]} 8. Nc3 {[%clk 0:02:57.2]} 8...
Na6 {[%clk 0:02:39.8]} 9. d4 {[%clk 0:02:37.8]} 9... cxd4 {[%clk 0:02:39]} 10.
Nxd4 {[%clk 0:02:38.7]} 10... Bxg2 {[%clk 0:02:38.8]} 11. Kxg2 {[%clk
0:02:39.6]} 11... Qc7 {[%clk 0:02:39.1]} 12. e3 {[%clk 0:02:37.3]} 12... Nc5
{[%clk 0:02:32.7]} 13. Rc1 {[%clk 0:02:33.3]} 13... d6 {[%clk 0:02:31.8]} 14.
Ba1 {[%clk 0:02:22.2]} 14... a6 {[%clk 0:02:31.2]} 15. Qf3 {[%clk 0:02:19.9]}
15... e6 {[%clk 0:02:15.2]} 16. Rfd1 {[%clk 0:02:17.4]} 16... Rac8 {[%clk
0:02:15.4]} 17. Nde2 {[%clk 0:01:51.1]} 17... Nfd7 {[%clk 0:02:10.3]} 18. Nf4
{[%clk 0:01:38.2]} 18... Ne5 {[%clk 0:02:10]} 19. Qe2 {[%clk 0:01:34.8]} 19...
Qc6+ {[%clk 0:02:03.3]} 20. e4 {[%clk 0:01:05.8]} 20... f5 {[%clk 0:02:03.3]}
21. Re1 {[%clk 0:00:45.9]} 21... fxe4 {[%clk 0:01:49.1]} 22. Nxe4 {[%clk
0:00:46.8]} 22... Rxf4 {[%clk 0:01:30.8]} 23. gxf4 {[%clk 0:00:40.7]} 23... Ned3
{[%clk 0:01:31.1]} 24. Kg3 {[%clk 0:00:23.1]} 24... Nxc1 {[%clk 0:01:28.5]} 25.
Qc2 {[%clk 0:00:13]} 25... N1d3 {[%clk 0:01:12.6]} 0-1

[Event "*** SCC Grand Prix: Titled Tuesday Blitz"]
[Site "Chess.com"]
[Date "2020.10.06"]
[Round "6"]
[White "kasparicy"]
[Black "maxsergej"]
[Result "1/2-1/2"]
[WhiteElo "2381"]
[BlackElo "2132"]
[TimeControl "180+1"]
[EndTime "11:06:47 PDT"]
[Termination "Game drawn by repetition"]

1. e4 {[%clk 0:03:00.9]} 1... c5 {[%clk 0:02:59.2]} 2. Nf3 {[%clk 0:02:59.7]}
2... Nc6 {[%clk 0:02:59.1]} 3. d4 {[%clk 0:02:59.9]} 3... cxd4 {[%clk
0:02:59.2]} 4. Nxd4 {[%clk 0:03:00.8]} 4... g6 {[%clk 0:02:59.6]} 5. Nc3 {[%clk
0:03:00]} 5... Bg7 {[%clk 0:02:59.8]} 6. Be3 {[%clk 0:03:00.7]} 6... Nf6 {[%clk
0:03:00.1]} 7. Be2 {[%clk 0:03:00.9]} 7... O-O {[%clk 0:02:59.8]} 8. Nb3 {[%clk
0:03:01.3]} 8... d6 {[%clk 0:02:58.8]} 9. O-O {[%clk 0:03:01.6]} 9... Be6 {[%clk
0:02:58.8]} 10. f4 {[%clk 0:03:01.1]} 10... Qc8 {[%clk 0:02:58]} 11. Kh1 {[%clk
0:02:58.9]} 11... Rd8 {[%clk 0:02:52.5]} 12. Qe1 {[%clk 0:02:58.3]} 12... Nb4
{[%clk 0:02:39.6]} 13. Rc1 {[%clk 0:02:48.3]} 13... a5 {[%clk 0:02:17.9]} 14.
Qh4 {[%clk 0:02:41.3]} 14... a4 {[%clk 0:02:12.5]} 15. Nd4 {[%clk 0:02:38.3]}
15... Nxa2 {[%clk 0:02:02.4]} 16. Nxa2 {[%clk 0:01:29.1]} 16... Bxa2 {[%clk
0:02:01.1]} 17. b3 {[%clk 0:01:21.5]} 17... Nxe4 {[%clk 0:01:53.2]} 18. f5
{[%clk 0:01:20]} 18... Qc3 {[%clk 0:01:34.2]} 19. fxg6 {[%clk 0:01:15.8]} 19...
fxg6 {[%clk 0:01:30.3]} 20. Ne6 {[%clk 0:00:55.3]} 20... Qxe3 {[%clk 0:01:15]}
21. Qxe7 {[%clk 0:00:53.7]} 21... Ng3+ {[%clk 0:01:00.3]} 22. hxg3 {[%clk
0:00:47.5]} 22... Qh6+ {[%clk 0:01:00]} 23. Kg1 {[%clk 0:00:47.8]} 23... Qe3+
{[%clk 0:00:58]} 24. Kh2 {[%clk 0:00:38.4]} 24... Qh6+ {[%clk 0:00:57.9]} 25.
Kg1 {[%clk 0:00:22.8]} 25... Qe3+ {[%clk 0:00:57.5]} 26. Kh2 {[%clk 0:00:23.2]}
26... Qh6+ {[%clk 0:00:57.5]} 27. Kg1 {[%clk 0:00:23.4]} 1/2-1/2

[Event "*** SCC Grand Prix: Titled Tuesday Blitz"]
[Site "Chess.com"]
[Date "2020.10.06"]
[Round "6"]
[White "Alindsay211"]
[Black "Lion-Al-Messi"]
[Result "1-0"]
[WhiteElo "2409"]
[BlackElo "2523"]
[TimeControl "180+1"]
[EndTime "11:06:50 PDT"]
[Termination "Alindsay211 won by resignation"]

1. e4 {[%clk 0:03:00.9]} 1... e6 {[%clk 0:02:59.8]} 2. d4 {[%clk 0:03:00.2]}
2... d5 {[%clk 0:03:00.7]} 3. e5 {[%clk 0:02:59.5]} 3... c5 {[%clk 0:03:00.6]}
4. c3 {[%clk 0:02:57.2]} 4... Nc6 {[%clk 0:03:00.9]} 5. Nf3 {[%clk 0:02:52.5]}
5... Qb6 {[%clk 0:03:01.2]} 6. a3 {[%clk 0:02:52.1]} 6... Nh6 {[%clk 0:03:00.4]}
7. b4 {[%clk 0:02:50.5]} 7... cxd4 {[%clk 0:03:00.7]} 8. cxd4 {[%clk 0:02:48.1]}
8... Nf5 {[%clk 0:03:00.2]} 9. Bb2 {[%clk 0:02:46.8]} 9... Bd7 {[%clk
0:02:59.5]} 10. Bd3 {[%clk 0:02:41.2]} 10... Be7 {[%clk 0:02:55.7]} 11. Bxf5
{[%clk 0:02:36.8]} 11... exf5 {[%clk 0:02:56.6]} 12. O-O {[%clk 0:02:36.9]}
12... g5 {[%clk 0:02:55.7]} 13. Nc3 {[%clk 0:02:34]} 13... Be6 {[%clk
0:02:54.6]} 14. Rc1 {[%clk 0:02:26]} 14... g4 {[%clk 0:02:54.4]} 15. Ne1 {[%clk
0:02:19.9]} 15... Bg5 {[%clk 0:02:54.6]} 16. Na4 {[%clk 0:02:14.6]} 16... Qd8
{[%clk 0:02:51.2]} 17. Rc2 {[%clk 0:02:04.5]} 17... h5 {[%clk 0:02:51.3]} 18.
Nc5 {[%clk 0:02:03]} 18... Qe7 {[%clk 0:02:46.4]} 19. Bc1 {[%clk 0:01:58.8]}
19... f4 {[%clk 0:02:44.3]} 20. Qd3 {[%clk 0:01:50.4]} 20... h4 {[%clk
0:02:40.4]} 21. Bd2 {[%clk 0:01:39.7]} 21... g3 {[%clk 0:02:39.3]} 22. fxg3
{[%clk 0:01:35.3]} 22... hxg3 {[%clk 0:02:40.2]} 23. hxg3 {[%clk 0:01:24]} 23...
fxg3 {[%clk 0:02:40]} 24. Qxg3 {[%clk 0:01:20.1]} 24... Bh4 {[%clk 0:02:39.3]}
25. Qg7 {[%clk 0:01:16.3]} 25... O-O-O {[%clk 0:02:37.2]} 26. Nxe6 {[%clk
0:01:10.1]} 26... Qxe6 {[%clk 0:02:36.8]} 27. b5 {[%clk 0:01:04.8]} 27... Rdg8
{[%clk 0:02:31.8]} 28. Qxf7 {[%clk 0:00:53.5]} 28... Qg4 {[%clk 0:02:24.6]} 29.
Qf5+ {[%clk 0:00:50.2]} 29... Qxf5 {[%clk 0:02:24.5]} 30. Rxf5 {[%clk 0:00:50]}
30... Kd7 {[%clk 0:02:22.9]} 31. bxc6+ {[%clk 0:00:48.9]} 31... bxc6 {[%clk
0:02:23.8]} 32. Nf3 {[%clk 0:00:47.7]} 32... Bd8 {[%clk 0:02:22.4]} 33. e6+
{[%clk 0:00:44.8]} 33... Kxe6 {[%clk 0:02:21.8]} 34. Re5+ {[%clk 0:00:44.8]}
34... Kd7 {[%clk 0:02:21.8]} 35. Re2 {[%clk 0:00:43.6]} 35... Bb6 {[%clk
0:02:19.1]} 36. a4 {[%clk 0:00:41.4]} 36... Rg4 {[%clk 0:02:04.7]} 37. Ne5+
{[%clk 0:00:38.6]} 37... Kd6 {[%clk 0:02:02.5]} 38. Nxg4 {[%clk 0:00:36.5]}
38... Bxd4+ {[%clk 0:02:02.7]} 39. Be3 {[%clk 0:00:36.5]} 39... Bg7 {[%clk
0:02:01.4]} 40. Bf4+ {[%clk 0:00:35.9]} 40... Kd7 {[%clk 0:01:59.8]} 41. Be5
{[%clk 0:00:36.3]} 41... Rh4 {[%clk 0:01:58.2]} 42. Nf6+ {[%clk 0:00:32.3]}
42... Bxf6 {[%clk 0:01:58]} 43. Bxf6 {[%clk 0:00:32.3]} 43... Rxa4 {[%clk
0:01:58.9]} 44. Re7+ {[%clk 0:00:31.9]} 44... Kd6 {[%clk 0:01:59.3]} 45. Rce2
{[%clk 0:00:31.9]} 45... d4 {[%clk 0:01:54.6]} 46. R7e6+ {[%clk 0:00:31.4]}
46... Kc5 {[%clk 0:01:54.2]} 47. Rc2+ {[%clk 0:00:31.2]} 47... Kd5 {[%clk
0:01:54.1]} 48. Rcxc6 {[%clk 0:00:27.9]} 48... d3 {[%clk 0:01:54.3]} 49. Rcd6+
{[%clk 0:00:26.8]} 49... Kc4 {[%clk 0:01:52.2]} 50. Re4+ {[%clk 0:00:26.6]}
50... Kc5 {[%clk 0:01:50.9]} 51. Rxa4 {[%clk 0:00:24.8]} 51... Kxd6 {[%clk
0:01:51.8]} 52. Bg5 {[%clk 0:00:24.4]} 1-0

[Event "*** SCC Grand Prix: Titled Tuesday Blitz"]
[Site "Chess.com"]
[Date "2020.10.06"]
[Round "6"]
[White "GM_Levan_Pantsulaia"]
[Black "Gurvich_Vitaly"]
[Result "1-0"]
[WhiteElo "2794"]
[BlackElo "2627"]
[TimeControl "180+1"]
[EndTime "11:07:04 PDT"]
[Termination "GM_Levan_Pantsulaia won by resignation"]

1. Nf3 {[%clk 0:03:00.9]} 1... Nf6 {[%clk 0:02:59.4]} 2. g3 {[%clk 0:03:01.2]}
2... g6 {[%clk 0:02:59.5]} 3. b3 {[%clk 0:03:01.6]} 3... Bg7 {[%clk 0:03:00.4]}
4. Bb2 {[%clk 0:03:02.1]} 4... c5 {[%clk 0:03:00.6]} 5. c4 {[%clk 0:03:00.6]}
5... d6 {[%clk 0:03:00.8]} 6. d4 {[%clk 0:02:57.4]} 6... Ne4 {[%clk 0:03:00]} 7.
Nc3 {[%clk 0:02:52.5]} 7... Qa5 {[%clk 0:02:59.3]} 8. Rc1 {[%clk 0:02:52.1]}
8... Bg4 {[%clk 0:02:55.2]} 9. a3 {[%clk 0:02:11.7]} 9... Bxf3 {[%clk
0:02:33.7]} 10. exf3 {[%clk 0:02:06.1]} 10... cxd4 {[%clk 0:02:28.2]} 11. fxe4
{[%clk 0:01:23.9]} 11... dxc3 {[%clk 0:02:22.4]} 12. b4 {[%clk 0:01:22.4]} 12...
Qe5 {[%clk 0:02:19.7]} 13. Rxc3 {[%clk 0:01:22.5]} 13... Qxe4+ {[%clk
0:01:39.3]} 14. Re3 {[%clk 0:01:21.3]} 14... Qxh1 {[%clk 0:01:39.4]} 15. Bxg7
{[%clk 0:01:21.1]} 15... Rg8 {[%clk 0:01:39.5]} 16. Qxd6 {[%clk 0:01:19.6]}
16... Nc6 {[%clk 0:01:39.5]} 17. Bf6 {[%clk 0:01:17]} 17... e6 {[%clk
0:00:58.9]} 18. b5 {[%clk 0:01:14]} 18... Rd8 {[%clk 0:00:14.2]} 19. Qc5 {[%clk
0:01:13]} 19... Rd7 {[%clk 0:00:12.6]} 20. bxc6 {[%clk 0:01:12.3]} 20... Qxc6
{[%clk 0:00:08.9]} 21. Qxc6 {[%clk 0:01:08.4]} 21... bxc6 {[%clk 0:00:09.8]} 22.
Bg2 {[%clk 0:01:08.7]} 22... Rc7 {[%clk 0:00:05.7]} 23. Rd3 {[%clk 0:01:08.1]}
23... Rc8 {[%clk 0:00:04.9]} 24. Bxc6+ {[%clk 0:01:07.9]} 24... Kf8 {[%clk
0:00:05.4]} 25. Bb7 {[%clk 0:01:05.6]} 25... Rb8 {[%clk 0:00:05]} 26. c5 {[%clk
0:01:05.6]} 26... g5 {[%clk 0:00:04.3]} 27. c6 {[%clk 0:01:05.9]} 1-0